fUST/lending_fUST_20240218
["ID","MTS","AMOUNT","RATE_DAILY","PERIOD"]
[314388080,1708255840279,-500.0,0.00028493,2]
[314388081,1708255840288,-500.0,0.00028493,2]
[314388082,1708255840297,-500.0,0.00028493,2]
[314388083,1708255840306,-531.54,0.00028493,2]
[314388084,1708255840316,-558.79,0.00028493,2]
[314388085,1708255840325,-500.0,0.00028493,2]
[314388086,1708255840335,-500.0,0.00028493,2]
[314388087,1708255840345,-4106.83,0.00028493,2]
[314388088,1708255840355,-718.0,0.00028493,2]
[314388089,1708255840364,-4862.58,0.00028493,2]
[314388090,1708255840373,-3739.51,0.00028493,2]
[314388091,1708255840382,-721.27,0.00028493,2]
[314388092,1708255840392,-500.0,0.00028493,2]
[314388093,1708255840401,-500.0,0.00028493,2]
[314388094,1708255840410,-541.14,0.00028493,2]
[314388095,1708255840420,-1180.53,0.00028493,2]
[314388096,1708255840431,-1075.15,0.00028493,2]
[314388097,1708255840440,-500.0,0.00028493,2]
[314388098,1708255840449,-870.58872734,0.00028493,2]
[314388099,1708255840574,-4726.23127266,0.00028493,2]
[314388100,1708255840584,-861.27201934,0.00028493,2]
[314388102,1708255840925,-1781.79,0.00027935,3]
[314388103,1708255841010,-1407.16798066,0.00028493,2]
[314388104,1708255841028,-764.24,0.00028493,2]
[314388105,1708255841037,-2989.45,0.00028493,2]
[314388106,1708255841047,-5281.21,0.00028493,2]
[314388107,1708255841056,-903.25,0.00028493,2]
[314388108,1708255841066,-500.0,0.00028493,2]
[314388109,1708255841075,-562.38075067,0.00028493,2]
[314388110,1708255841084,-500.0,0.00028493,2]
[314388111,1708255841093,-500.0,0.00028493,2]
[314388112,1708255841102,-150.54465542,0.00028669,2]
[314388113,1708255841111,-151.0,0.00028766,2]
[314388114,1708255841120,-151.0,0.00028766,2]
[314388115,1708255841130,-500.0,0.00028767,2]
[314388116,1708255841139,-500.0,0.00028767,2]
[314388117,1708255841148,-549.14,0.00028767,2]
[314388118,1708255841157,-151.0,0.00028767,2]
[314388119,1708255841167,-500.0,0.00028767,2]
[314388120,1708255841176,-500.0,0.00028767,2]
[314388121,1708255841185,-669.21,0.00028767,2]
[314388122,1708255841195,-500.0,0.00028767,2]
[314388123,1708255841204,-424.42545864,0.00028767,2]
[314388124,1708255841214,-578.69198446,0.00028767,2]
[314388125,1708255841223,-237.811679,0.00028767,2]
[314388126,1708255841233,-237.811679,0.00028767,2]
[314388127,1708255841243,-675.43,0.00028767,2]
[314388128,1708255841254,-639.13,0.00028767,2]
[314388129,1708255841264,-500.0,0.00028767,2]
[314388130,1708255841273,-500.0,0.00028767,2]
[314388131,1708255841282,-500.0,0.00028767,2]
[314388132,1708255841291,-531.54,0.00028767,2]
[314388133,1708255841301,-558.79,0.00028767,2]
[314388134,1708255841310,-500.0,0.00028767,2]
[314388135,1708255841319,-500.0,0.00028767,2]
[314388136,1708255841328,-4106.83,0.00028767,2]
[314388137,1708255841337,-718.0,0.00028767,2]
[314388138,1708255841346,-4862.58,0.00028767,2]
[314388139,1708255841355,-3739.51,0.00028767,2]
[314388140,1708255841365,-721.27,0.00028767,2]
[314388141,1708255841374,-500.0,0.00028767,2]
[314388142,1708255841383,-500.0,0.00028767,2]
[314388143,1708255841392,-541.14,0.00028767,2]
[314388144,1708255841402,-1180.53,0.00028767,2]
[314388145,1708255841411,-1075.15,0.00028767,2]
[314388146,1708255841421,-500.0,0.00028767,2]
[314388147,1708255841432,-5596.82,0.00028767,2]
[314388148,1708255841441,-2268.44,0.00028767,2]
[314388149,1708255841450,-764.24,0.00028767,2]
[314388150,1708255841459,-2989.45,0.00028767,2]
[314388151,1708255841469,-5281.21,0.00028767,2]
[314388152,1708255841479,-903.25,0.00028767,2]
[314388153,1708255841488,-500.0,0.00028767,2]
[314388154,1708255841497,-500.0,0.00028767,2]
[314388155,1708255841507,-500.0,0.00028767,2]
[314388156,1708255841516,-260.2592244,0.00028767,2]
[314388157,1708255841527,-327.5474294,0.00028767,2]
[314388158,1708255841537,-153.0,0.00028767,2]
[314388159,1708255841546,-342.2476447,0.00028767,2]
[314388160,1708255841556,-200.2824076,0.00028767,2]
[314388161,1708255841565,-153.0,0.00028767,2]
[314388162,1708255841575,-200.3472215,0.00028767,2]
[314388163,1708255841584,-153.0,0.00028767,2]
[314388164,1708255841593,-200.3472215,0.00028767,2]
[314388165,1708255841603,-300.0,0.00028956,2]
[314388166,1708255841613,-1403.54567908,0.00029,2]
[314388167,1708255841622,-1000.0,0.00029,29]
[314388168,1708255841632,-150.0,0.00029,2]
[314388169,1708255841642,-152.30138234,0.00029014,2]
[314388170,1708255841652,-500.0,0.00029041,2]
[314388171,1708255841661,-500.0,0.00029041,2]
[314388172,1708255841671,-549.14,0.00029041,2]
[314388173,1708255841681,-415.81772748,0.00029041,2]
[314388174,1708255841690,-500.0,0.00029041,2]
[314388175,1708255841699,-669.21,0.00029041,2]
[314388177,1708255841708,-151.0,0.00029041,2]
[314388179,1708255841717,-500.0,0.00029041,2]
[314388181,1708255841726,-151.0,0.00029041,2]
[314388183,1708255841735,-675.43,0.00029041,2]
[314388185,1708255841745,-639.13,0.00029041,2]
[314388187,1708255841754,-500.0,0.00029041,2]
[314388189,1708255841764,-500.0,0.00029041,2]
[314388190,1708255841773,-500.0,0.00029041,2]
[314388192,1708255841782,-531.54,0.00029041,2]
[314388194,1708255841792,-558.79,0.00029041,2]
[314388196,1708255841801,-500.0,0.00029041,2]
[314388197,1708255841811,-500.0,0.00029041,2]
[314388198,1708255841820,-4106.83,0.00029041,2]
[314388199,1708255841830,-718.0,0.00029041,2]
[314388200,1708255841840,-4862.58,0.00029041,2]
[314388202,1708255841848,-3739.51,0.00029041,2]
[314388203,1708255841858,-721.27,0.00029041,2]
[314388205,1708255841867,-1102.963576,0.00029041,2]
[314388206,1708255841876,-500.0,0.00029041,2]
[314388207,1708255841886,-1102.963576,0.00029041,2]
[314388208,1708255841896,-500.0,0.00029041,2]
[314388209,1708255841906,-541.14,0.00029041,2]
[314388210,1708255841915,-1180.53,0.00029041,2]
[314388211,1708255841925,-1211.858725,0.00029041,2]
[314388212,1708255841934,-1075.15,0.00029041,2]
[314388213,1708255841944,-500.0,0.00029041,2]
[314388214,1708255841953,-1211.858725,0.00029041,2]
[314388215,1708255841962,-5596.82,0.00029041,2]
[314388216,1708255841971,-2268.44,0.00029041,2]
[314388217,1708255841980,-764.24,0.00029041,2]
[314388218,1708255841990,-2989.45,0.00029041,2]
[314388219,1708255841999,-5281.21,0.00029041,2]
[314388220,1708255842008,-903.25,0.00029041,2]
[314388221,1708255842017,-500.0,0.00029041,2]
[314388222,1708255842027,-500.0,0.00029041,2]
[314388223,1708255842037,-500.0,0.00029041,2]
[314388224,1708255842046,-5000.0,0.00029086,5]
[314388225,1708255842055,-50000.0,0.0002909,5]
[314388226,1708255842064,-151.0,0.0002909,2]
[314388227,1708255842073,-151.0,0.0002909,2]
[314388228,1708255842082,-151.0,0.0002909,2]
[314388229,1708255842091,-274.414081,0.0002909,2]
[314388230,1708255842100,-151.0,0.0002909,2]
[314388231,1708255842109,-151.0,0.0002909,2]
[314388232,1708255842118,-151.0,0.00029103,2]
[314388233,1708255842127,-5000.0,0.0002911,5]
[314388234,1708255842136,-50000.0,0.00029113,5]
[314388235,1708255842145,-237.811679,0.00029113,2]
[314388236,1708255842154,-237.811679,0.00029113,2]
[314388237,1708255842164,-1211.858725,0.00029113,2]
[314388238,1708255842172,-1211.858725,0.00029113,2]
[314388239,1708255842181,-163.23674341,0.000293,2]
[314388240,1708255842191,-2000.0,0.000293,2]
[314388241,1708255842201,-3195.663274,0.0002931,2]
[314388242,1708255842210,-169.75427194,0.00029314,2]
[314388243,1708255842219,-500.0,0.00029315,2]
[314388244,1708255842228,-500.0,0.00029315,2]
[314388245,1708255842237,-549.14,0.00029315,2]
[314388246,1708255842248,-500.0,0.00029315,2]
[314388247,1708255842258,-669.21,0.00029315,2]
[314388248,1708255842267,-247.27001,0.00029315,2]
[314388249,1708255842277,-500.0,0.00029315,2]
[314388250,1708255842287,-151.0,0.00029315,2]
[314388251,1708255842298,-675.43,0.00029315,2]
[314388252,1708255842309,-639.13,0.00029315,2]
[314388253,1708255842320,-500.0,0.00029315,2]
[314388254,1708255842331,-500.0,0.00029315,2]
[314388255,1708255842341,-500.0,0.00029315,2]
[314388256,1708255842350,-531.54,0.00029315,2]
[314388257,1708255842360,-558.79,0.00029315,2]
[314388258,1708255842369,-500.0,0.00029315,2]
[314388259,1708255842378,-500.0,0.00029315,2]
[314388260,1708255842387,-4106.83,0.00029315,2]
[314388261,1708255842396,-718.0,0.00029315,2]
[314388262,1708255842406,-4862.58,0.00029315,2]
[314388263,1708255842417,-3739.51,0.00029315,2]
[314388264,1708255842428,-721.27,0.00029315,2]
[314388265,1708255842439,-1102.963576,0.00029315,2]
[314388266,1708255842448,-500.0,0.00029315,2]
[314388267,1708255842457,-1102.963576,0.00029315,2]
[314388268,1708255842466,-500.0,0.00029315,2]
[314388269,1708255842475,-541.14,0.00029315,2]
[314388270,1708255842484,-1180.53,0.00029315,2]
[314388271,1708255842494,-1075.15,0.00029315,2]
[314388272,1708255842504,-500.0,0.00029315,2]
[314388273,1708255842513,-5596.82,0.00029315,2]
[314388274,1708255842522,-2268.44,0.00029315,2]
[314388275,1708255842531,-764.24,0.00029315,2]
[314388276,1708255842540,-2989.45,0.00029315,2]
[314388277,1708255842549,-5281.21,0.00029315,2]
[314388278,1708255842558,-903.25,0.00029315,2]
[314388279,1708255842567,-500.0,0.00029315,2]
[314388280,1708255842577,-500.0,0.00029315,2]
[314388281,1708255842586,-500.0,0.00029315,2]
[314388282,1708255842595,-300.0,0.0002946,2]
[314388283,1708255842604,-620.0053787,0.00029468,2]
[314388284,1708255842613,-2908.91814448,0.00029471,2]
[314388285,1708255842622,-500.0,0.00029589,2]
[314388286,1708255842631,-151.0,0.00029589,2]
[314388287,1708255842703,-500.0,0.00029589,2]
[314388288,1708255842712,-151.0,0.00029589,2]
[314388289,1708255842721,-151.0,0.00029589,2]
[314388290,1708255842729,-151.0,0.00029589,2]
[314388291,1708255842738,-549.14,0.00029589,2]
[314388292,1708255842747,-151.0,0.00029589,2]
[314388293,1708255842756,-500.0,0.00029589,2]
[314388294,1708255842765,-669.21,0.00029589,2]
[314388295,1708255842774,-311.74198868,0.00029589,2]
[314388296,1708255842784,-675.43,0.00029589,2]
[314388297,1708255842793,-639.13,0.00029589,2]
[314388298,1708255842802,-500.0,0.00029589,2]
[314388299,1708255842812,-500.0,0.00029589,2]
[314388300,1708255842821,-500.0,0.00029589,2]
[314388301,1708255842830,-531.54,0.00029589,2]
[314388302,1708255842840,-558.79,0.00029589,2]
[314388303,1708255842849,-500.0,0.00029589,2]
[314388304,1708255842858,-500.0,0.00029589,2]
[314388305,1708255842867,-151.0,0.00029589,2]
[314388306,1708255842876,-151.0,0.00029589,2]
[314388307,1708255842885,-4106.83,0.00029589,2]
[314388308,1708255842894,-718.0,0.00029589,2]
[314388309,1708255842903,-4862.58,0.00029589,2]
[314388310,1708255842912,-3739.51,0.00029589,2]
[314388311,1708255842921,-721.27,0.00029589,2]
[314388312,1708255842930,-500.0,0.00029589,2]
[314388313,1708255842940,-500.0,0.00029589,2]
[314388314,1708255842949,-541.14,0.00029589,2]
[314388315,1708255842958,-1180.53,0.00029589,2]
[314388316,1708255842968,-1075.15,0.00029589,2]
[314388317,1708255842977,-500.0,0.00029589,2]
[314388318,1708255842987,-5596.82,0.00029589,2]
[314388319,1708255842996,-2268.44,0.00029589,2]
[314388320,1708255843005,-764.24,0.00029589,2]
[314388322,1708255843014,-2989.45,0.00029589,2]
[314388323,1708255843024,-5281.21,0.00029589,2]
[314388324,1708255843033,-903.25,0.00029589,2]
[314388325,1708255843042,-500.0,0.00029589,2]
[314388326,1708255843052,-500.0,0.00029589,2]
[314388328,1708255843061,-500.0,0.00029589,2]
[314388329,1708255843070,-156.6291676,0.00029589,2]
[314388331,1708255843079,-153.0,0.00029589,2]
[314388333,1708255843088,-153.0,0.00029589,2]
[314388334,1708255843098,-153.0,0.00029589,2]
[314388335,1708255843108,-306.0,0.00029589,2]
[314388336,1708255843117,-153.0,0.00029589,2]
[314388338,1708255843126,-153.0,0.00029589,2]
[314388339,1708255843135,-153.0,0.00029589,2]
[314388340,1708255843144,-501.8050529,0.00029589,2]
[314388341,1708255843153,-620.00512816,0.00029663,2]
[314388342,1708255843162,-1000.0,0.00029727,2]
[314388343,1708255843172,-1000.0,0.00029789,2]
[314388344,1708255843182,-1000.0,0.00029789,2]
[314388345,1708255843191,-153.03480473,0.00029802,2]
[314388346,1708255843201,-300.0,0.00029807,2]
[314388347,1708255843210,-1000.0,0.00029841,2]
[314388348,1708255843221,-1000.0,0.00029843,2]
[314388349,1708255843230,-234.0147,0.00029849,2]
[314388350,1708255843240,-500.0,0.00029863,2]
[314388351,1708255843249,-500.0,0.00029863,2]
[314388352,1708255843258,-549.14,0.00029863,2]
[314388353,1708255843267,-500.0,0.00029863,2]
[314388354,1708255843276,-669.21,0.00029863,2]
[314388355,1708255843286,-237.811679,0.00029863,2]
[314388356,1708255843296,-237.811679,0.00029863,2]
[314388357,1708255843305,-675.43,0.00029863,2]
[314388358,1708255843315,-639.13,0.00029863,2]
[314388359,1708255843325,-500.0,0.00029863,2]
[314388360,1708255843335,-500.0,0.00029863,2]
[314388362,1708255843345,-500.0,0.00029863,2]
[314388364,1708255843354,-531.54,0.00029863,2]
[314388366,1708255843363,-558.79,0.00029863,2]
[314388368,1708255843372,-500.0,0.00029863,2]
[314388370,1708255843381,-500.0,0.00029863,2]
[314388372,1708255843390,-4106.83,0.00029863,2]
[314388374,1708255843399,-718.0,0.00029863,2]
[314388375,1708255843408,-4862.58,0.00029863,2]
[314388377,1708255843417,-3739.51,0.00029863,2]
[314388379,1708255843428,-721.27,0.00029863,2]
[314388381,1708255843438,-1102.963576,0.00029863,2]
[314388383,1708255843447,-500.0,0.00029863,2]
[314388385,1708255843456,-1102.963576,0.00029863,2]
[314388387,1708255843466,-500.0,0.00029863,2]
[314388389,1708255843475,-541.14,0.00029863,2]
[314388391,1708255843484,-1180.53,0.00029863,2]
[314388393,1708255843494,-1211.858725,0.00029863,2]
[314388395,1708255843504,-1075.15,0.00029863,2]
[314388397,1708255843513,-500.0,0.00029863,2]
[314388399,1708255843523,-1211.858725,0.00029863,2]
[314388401,1708255843532,-5596.82,0.00029863,2]
[314388403,1708255843541,-2268.44,0.00029863,2]
[314388405,1708255843551,-764.24,0.00029863,2]
[314388407,1708255843559,-2989.45,0.00029863,2]
[314388409,1708255843569,-5281.21,0.00029863,2]
[314388411,1708255843578,-903.25,0.00029863,2]
[314388413,1708255843587,-500.0,0.00029863,2]
[314388415,1708255843598,-500.0,0.00029863,2]
[314388416,1708255843607,-500.0,0.00029863,2]
[314388418,1708255843617,-1000.0,0.00029883,2]
[314388420,1708255843626,-1000.0,0.00029887,2]
[314388422,1708255843635,-1000.0,0.00029896,2]
[314388424,1708255843644,-1000.0,0.00029923,2]
[314388426,1708255843653,-739.23692889,0.00029929,2]
[314388428,1708255843662,-1000.0,0.00029958,2]
[314388430,1708255843671,-300.0,0.00029964,2]
[314388432,1708255843680,-522.245003,0.00029988,2]
[314388434,1708255843691,-195.39408919,0.00029998,2]
[314388436,1708255843700,-2818.49090946,0.00029998,2]
[314388438,1708255843710,-151.0,0.00029998,2]
[314388440,1708255843719,-619455.72831088,0.0003,5]
[314388789,1708255847131,-5000.0,0.00026949,2]
[314388791,1708255847141,-155.0,0.00027397,2]
[314388793,1708255847150,-500.0,0.00028218,2]
[314388795,1708255847159,-195.99116609,0.00028218,2]
[314388797,1708255847168,-155.0,0.00028767,2]
[314388799,1708255847177,-20112.50883391,0.0003,5]
[314388960,1708257031787,-295.12626262,0.00021995,2]
[314388962,1708257031797,-2818.49090946,0.00022199,2]
[314388964,1708257031806,-24900.0,0.00023174,2]
[314388966,1708257031817,-210.030091,0.00023317,2]
[314388968,1708257031827,-161.5894657,0.00023999,2]
[314388970,1708257031835,-169.890415,0.00024106,2]
[314388972,1708257031845,-186.27878927,0.00024107,2]
[314388974,1708257031856,-166.666666,0.00024658,2]
[314388976,1708257031865,-550.13,0.0002499,3]
[314388978,1708257031875,-3959.8,0.0002499,3]
[314388980,1708257031884,-43305.27507329,0.00025,2]
[314388982,1708257031896,-8218.54549064,0.00025,2]
[314388984,1708257031907,-5306.85853467,0.00025,2]
[314388987,1708257031918,-686.19080936,0.00025,2]
[314389031,1708257037777,-254.13532007,0.00021994,2]
[314389032,1708257037786,-281.40101121,0.0002499,3]
[314389033,1708257037798,-3018.43898879,0.0002499,3]
[314389034,1708257037808,-27203.96036044,0.00025,2]
[314389035,1708257037819,-7417.65678579,0.00025,2]
[314389036,1708257037828,-7417.65678579,0.00025,2]
[314389038,1708257037837,-200.0,0.00025479,2]
[314389039,1708257037846,-169.599211,0.00026521,2]
[314389040,1708257037856,-261.34833159,0.00026948,2]
[314389041,1708257037867,-11948.97493199,0.00026975,2]
[314389043,1708257037876,-77000.0,0.00026994,2]
[314389045,1708257037885,-11241.22124751,0.00027014,2]
[314389047,1708257037894,-506.4818124,0.00027396,2]
[314389048,1708257037903,-219.61575789,0.00027396,2]
[314389049,1708257037912,-500.0,0.00027396,2]
[314389050,1708257037921,-500.0,0.00027396,2]
[314389051,1708257037930,-500.0,0.00027396,2]
[314389052,1708257037939,-500.0,0.00027396,2]
[314389053,1708257037948,-275.37495978,0.00027396,2]
[314389054,1708257037958,-500.0,0.00027396,2]
[314389055,1708257037970,-500.0,0.00027396,2]
[314389056,1708257037978,-500.0,0.00027396,2]
[314389057,1708257037987,-500.0,0.00027396,2]
[314389058,1708257037996,-500.0,0.00027396,2]
[314389059,1708257038005,-500.0,0.00027396,2]
[314389060,1708257038014,-500.0,0.00027396,2]
[314389061,1708257038023,-500.0,0.00027396,2]
[314389062,1708257038032,-500.0,0.00027396,2]
[314389063,1708257038041,-500.0,0.00027396,2]
[314389064,1708257038050,-500.0,0.00027396,2]
[314389065,1708257038059,-500.0,0.00027396,2]
[314389066,1708257038068,-500.0,0.00027396,2]
[314389067,1708257038077,-500.0,0.00027396,2]
[314389068,1708257038086,-500.0,0.00027396,2]
[314389069,1708257038095,-500.0,0.00027396,2]
[314389070,1708257038104,-500.0,0.00027396,2]
[314389071,1708257038113,-500.0,0.00027396,2]
[314389072,1708257038122,-500.0,0.00027396,2]
[314389073,1708257038131,-500.0,0.00027396,2]
[314389074,1708257038140,-500.0,0.00027396,2]
[314389075,1708257038149,-500.0,0.00027396,2]
[314389076,1708257038159,-500.0,0.00027396,2]
[314389077,1708257038168,-500.0,0.00027396,2]
[314389078,1708257038178,-341.28945542,0.00027396,2]
[314389079,1708257038187,-500.0,0.00027396,2]
[314389080,1708257038196,-500.0,0.00027396,2]
[314389081,1708257038207,-500.0,0.00027396,2]
[314389082,1708257038216,-500.0,0.00027396,2]
[314389083,1708257038226,-500.0,0.00027396,2]
[314389084,1708257038235,-500.0,0.00027396,2]
[314389085,1708257038245,-500.0,0.00027396,2]
[314389086,1708257038254,-607.2380826,0.00027397,2]
[314389087,1708257038265,-500.0,0.00027397,2]
[314389088,1708257038274,-500.0,0.00027397,2]
[314389089,1708257038283,-500.0,0.00027397,2]
[314389090,1708257038293,-500.0,0.00027397,2]
[314389091,1708257038302,-500.0,0.00027397,2]
[314389092,1708257038313,-500.0,0.00027397,2]
[314389093,1708257038322,-500.0,0.00027397,2]
[314389094,1708257038331,-424.42545864,0.00027397,2]
[314389095,1708257038340,-155.0,0.00027397,2]
[314389096,1708257038359,-500.0,0.00027397,2]
[314389097,1708257038371,-500.0,0.00027397,2]
[314389098,1708257038381,-500.0,0.00027397,2]
[314389099,1708257038391,-529.79,0.00027397,2]
[314389100,1708257038400,-500.0,0.00027397,2]
[314389101,1708257038410,-500.0,0.00027397,2]
[314389102,1708257038420,-578.69198446,0.00027397,2]
[314389103,1708257038430,-500.0,0.00027397,2]
[314389104,1708257038440,-505.97,0.00027397,2]
[314389105,1708257038449,-3251.24,0.00027397,2]
[314389106,1708257038459,-534.71,0.00027397,2]
[314389107,1708257038469,-3002.39,0.00027397,2]
[314389108,1708257038479,-500.0,0.00027397,2]
[314389109,1708257038488,-500.0,0.00027397,2]
[314389110,1708257038498,-500.0,0.00027397,2]
[314389111,1708257038508,-500.0,0.00027397,2]
[314389112,1708257038518,-500.0,0.00027397,2]
[314389113,1708257038527,-500.0,0.00027397,2]
[314389114,1708257038536,-500.0,0.00027397,2]
[314389115,1708257038546,-568.42,0.00027397,2]
[314389116,1708257038555,-589.67,0.00027397,2]
[314389117,1708257038564,-957.55,0.00027397,2]
[314389118,1708257038573,-3849.54,0.00027397,2]
[314389119,1708257038583,-500.0,0.00027397,2]
[314389120,1708257038592,-500.0,0.00027397,2]
[314389121,1708257038601,-500.0,0.00027397,2]
[314389122,1708257038611,-851.16,0.00027397,2]
[314389123,1708257038620,-1854.48,0.00027397,2]
[314389124,1708257038630,-636.87,0.00027397,2]
[314389125,1708257038639,-2491.21,0.00027397,2]
[314389126,1708257038649,-752.71,0.00027397,2]
[314389127,1708257038658,-4430.81,0.00027397,2]
[314389128,1708257038667,-500.0,0.00027397,2]
[314389129,1708257038677,-562.38075067,0.00027397,2]
[314389130,1708257038686,-500.0,0.00027397,2]
[314389131,1708257038695,-500.0,0.00027397,2]
[314389132,1708257038705,-4401.01,0.00027397,2]
[314389133,1708257038715,-253.57171474,0.00027397,2]
[314389134,1708257038725,-166.666666,0.00027542,2]
[314389135,1708257038735,-500.0,0.00027671,2]
[314389136,1708257038745,-500.0,0.00027671,2]
[314389137,1708257038754,-500.0,0.00027671,2]
[314389138,1708257038763,-500.0,0.00027671,2]
[314389139,1708257038775,-415.81772748,0.00027671,2]
[314389140,1708257038785,-500.0,0.00027671,2]
[314389141,1708257038794,-500.0,0.00027671,2]
[314389142,1708257038805,-500.0,0.00027671,2]
[314389143,1708257038816,-529.79,0.00027671,2]
[314389144,1708257038825,-500.0,0.00027671,2]
[314389145,1708257038834,-500.0,0.00027671,2]
[314389146,1708257038843,-500.0,0.00027671,2]
[314389147,1708257038854,-505.97,0.00027671,2]
[314389148,1708257038863,-3251.24,0.00027671,2]
[314389149,1708257038873,-534.71,0.00027671,2]
[314389150,1708257038882,-3002.39,0.00027671,2]
[314389151,1708257038891,-500.0,0.00027671,2]
[314389152,1708257038901,-500.0,0.00027671,2]
[314389153,1708257038910,-500.0,0.00027671,2]
[314389154,1708257038919,-500.0,0.00027671,2]
[314389155,1708257038928,-500.0,0.00027671,2]
[314389156,1708257038937,-500.0,0.00027671,2]
[314389157,1708257038946,-568.42,0.00027671,2]
[314389158,1708257038955,-589.67,0.00027671,2]
[314389159,1708257038964,-957.55,0.00027671,2]
[314389160,1708257038974,-3849.54,0.00027671,2]
[314389161,1708257038983,-500.0,0.00027671,2]
[314389162,1708257038992,-500.0,0.00027671,2]
[314389163,1708257039001,-500.0,0.00027671,2]
[314389164,1708257039011,-851.16,0.00027671,2]
[314389165,1708257039020,-1854.48,0.00027671,2]
[314389166,1708257039029,-636.87,0.00027671,2]
[314389167,1708257039038,-2491.21,0.00027671,2]
[314389168,1708257039047,-752.71,0.00027671,2]
[314389169,1708257039057,-4430.81,0.00027671,2]
[314389170,1708257039066,-500.0,0.00027671,2]
[314389171,1708257039076,-500.0,0.00027671,2]
[314389172,1708257039085,-500.0,0.00027671,2]
[314389173,1708257039094,-4401.01,0.00027671,2]
[314389174,1708257039103,-1156.79816527,0.00027818,2]
[314389175,1708257039112,-1103.94282008,0.000279,2]
[314389176,1708257039122,-500.0,0.00027945,2]
[314389177,1708257039131,-500.0,0.00027945,2]
[314389178,1708257039141,-500.0,0.00027945,2]
[314389179,1708257039150,-500.0,0.00027945,2]
[314389180,1708257039159,-500.0,0.00027945,2]
[314389182,1708257039269,-500.0,0.00027945,2]
[314389183,1708257039279,-529.79,0.00027945,2]
[314389184,1708257039290,-500.0,0.00027945,2]
[314389185,1708257039299,-500.0,0.00027945,2]
[314389186,1708257039308,-500.0,0.00027945,2]
[314389187,1708257039317,-505.97,0.00027945,2]
[314389188,1708257039326,-3251.24,0.00027945,2]
[314389189,1708257039336,-534.71,0.00027945,2]
[314389190,1708257039345,-3002.39,0.00027945,2]
[314389191,1708257039354,-500.0,0.00027945,2]
[314389192,1708257039363,-500.0,0.00027945,2]
[314389193,1708257039372,-500.0,0.00027945,2]
[314389194,1708257039382,-500.0,0.00027945,2]
[314389195,1708257039391,-500.0,0.00027945,2]
[314389196,1708257039400,-500.0,0.00027945,2]
[314389197,1708257039409,-568.42,0.00027945,2]
[314389198,1708257039419,-589.67,0.00027945,2]
[314389199,1708257039428,-957.55,0.00027945,2]
[314389200,1708257039438,-3849.54,0.00027945,2]
[314389201,1708257039447,-500.0,0.00027945,2]
[314389202,1708257039457,-500.0,0.00027945,2]
[314389203,1708257039466,-500.0,0.00027945,2]
[314389204,1708257039476,-851.16,0.00027945,2]
[314389205,1708257039485,-1854.48,0.00027945,2]
[314389206,1708257039494,-636.87,0.00027945,2]
[314389207,1708257039503,-2491.21,0.00027945,2]
[314389208,1708257039512,-752.71,0.00027945,2]
[314389209,1708257039522,-4430.81,0.00027945,2]
[314389210,1708257039531,-500.0,0.00027945,2]
[314389211,1708257039541,-500.0,0.00027945,2]